bitfinex/quotes_SOLUSD_20241231
["timestamp","ask_amount","ask_price","bid_price","bid_amount"]
[1735666320158,5.0,197.48,197.4,9.82976841]
[1735666320360,5.0,197.47,197.38,32.6658]
[1735666320556,5.0,197.49,197.38,32.6658]
[1735666320557,5.0,197.48,197.39,23.776884]
[1735666320760,5.0,197.48,197.41,9.82976841]
[1735666320974,5.0,197.48,197.39,23.776884]
[1735666321174,5.0,197.48,197.41,9.82976841]
[1735666321381,5.0,197.48,197.38,32.6658]
[1735666321688,5.0,197.48,197.41,23.776884]
[1735666322068,5.0,197.49,197.41,9.82976841]
[1735666322289,5.0,197.48,197.39,23.776884]
[1735666322478,5.0,197.48,197.41,23.776884]
[1735666322866,5.0,197.47,197.41,23.776884]
[1735666323185,5.0,197.48,197.39,23.776884]
[1735666323385,10.0,197.49,197.41,23.776884]
[1735666323562,5.0,197.48,197.41,23.776884]
[1735666323760,6.5944,197.5,197.44,9.82976841]
[1735666323985,16.5944,197.5,197.44,9.82976841]
[1735666324294,5.0,197.49,197.41,33.60665241]
[1735666324467,1.5098,197.45,197.41,23.776884]
[1735666325369,6.5098,197.45,197.34,12.6684]
[1735666325577,5.0,197.44,197.38,9.82976841]
[1735666325786,5.0,197.44,197.34,12.6684]
[1735666326090,5.0,197.43,197.37,9.82976841]
[1735666326384,5.0,197.43,197.34,12.6684]
[1735666326692,5.0,197.4,197.36,9.82976841]
[1735666326863,5.0,197.4,197.35,9.82976841]
[1735666327961,6.5944,197.42,197.35,9.82976841]
[1735666328278,1.5098,197.45,197.39,9.82976841]
[1735666328890,1.5098,197.45,197.41,23.776884]
[1735666330393,5.0,197.44,197.41,23.776884]
[1735666330573,1.5098,197.45,197.39,9.82976841]
[1735666330773,1.5098,197.45,197.4,23.776884]
[1735666331083,1.5098,197.45,197.4,33.60665241]
[1735666331270,1.5098,197.45,197.38,23.776884]
[1735666331467,1.5098,197.45,197.4,9.82976841]
[1735666331671,1.5098,197.45,197.4,23.776884]
[1735666332102,6.5098,197.45,197.37,12.6661]
[1735666332290,5.0,197.44,197.37,22.49586841]
[1735666332996,5.0,197.44,197.38,23.776884]
[1735666333179,5.0,197.41,197.36,9.82976841]
[1735666333378,5.0,197.41,197.35,9.82976841]
[1735666333699,1.5098,197.45,197.35,9.82976841]
[1735666333905,1.5098,197.45,197.39,9.82976841]
[1735666334098,1.5098,197.45,197.4,23.776884]
[1735666334394,11.5944,197.47,197.35,12.6678]
[1735666334395,6.5731,197.52,197.42,9.82976841]
[1735666334596,6.5731,197.52,197.43,9.82976841]
[1735666334800,6.5731,197.52,197.44,23.776884]
[1735666335103,6.5731,197.52,197.42,9.82976841]
[1735666335402,6.5731,197.52,197.43,23.776884]
[1735666335599,6.5731,197.52,197.42,9.82976841]
[1735666335600,6.5731,197.52,197.42,23.776884]
[1735666335974,6.5731,197.52,197.39,20.0]
[1735666336176,6.5731,197.52,197.42,23.776884]
[1735666336811,6.5731,197.52,197.4,9.82976841]
[1735666336973,6.5731,197.52,197.38,20.0]
[1735666337498,20.0,197.49,197.35,12.6678]
[1735666337672,6.5731,197.47,197.36,9.82976841]
[1735666338105,6.5731,197.47,197.35,9.82976841]
[1735666338283,6.5731,197.47,197.34,20.0]
[1735666338609,6.5731,197.47,197.36,23.776884]
[1735666339109,6.5731,197.47,197.38,23.776884]
[1735666339282,6.5731,197.47,197.37,23.776884]
[1735666339479,6.5731,197.47,197.36,23.776884]
[1735666339923,6.5731,197.47,197.36,9.82976841]
[1735666340284,6.5731,197.47,197.35,23.776884]
[1735666340499,6.5731,197.47,197.35,33.60665241]
[1735666341212,6.5731,197.47,197.35,23.776884]
[1735666341998,6.5731,197.47,197.35,33.60665241]
[1735666342311,6.5731,197.47,197.35,23.776884]
[1735666342476,6.5731,197.47,197.35,33.60665241]
[1735666343306,6.5731,197.47,197.35,23.776884]
[1735666343506,1.5648,197.46,197.36,9.82976841]
[1735666343807,1.5648,197.46,197.35,33.60665241]
[1735666344610,1.5648,197.46,197.35,23.776884]
[1735666344809,8.1379,197.43,197.33,0.98831163]
[1735666345013,11.397,197.42,197.33,0.98831163]
[1735666345583,11.397,197.42,197.34,23.776884]
[1735666345788,20.0,197.39,197.34,23.776884]
[1735666346013,20.0,197.4,197.34,23.776884]
[1735666346188,8.1379,197.43,197.36,23.776884]
[1735666346522,8.1379,197.43,197.34,23.776884]
[1735666346698,8.1379,197.43,197.34,33.60665241]
[1735666347040,20.0,197.4,197.33,0.98831163]
[1735666347220,1.5891,197.42,197.34,23.776884]
[1735666347583,1.5891,197.42,197.36,23.776884]
[1735666348319,1.5891,197.42,197.34,23.776884]
[1735666348485,1.5891,197.42,197.34,33.60665241]
[1735666348689,1.5891,197.42,197.34,23.776884]
[1735666348997,1.5891,197.42,197.34,33.60665241]
[1735666349703,1.5891,197.42,197.34,23.776884]
[1735666352496,20.0,197.4,197.34,23.776884]
[1735666352702,1.5891,197.39,197.34,23.776884]
[1735666353214,21.5891,197.39,197.34,23.776884]
[1735666353422,1.5891,197.39,197.34,23.776884]
[1735666353627,1.5891,197.39,197.34,33.60665241]
[1735666354323,1.5891,197.39,197.34,23.776884]
[1735666355898,6.0454,197.38,197.33,0.98831163]
[1735666356719,6.0454,197.38,197.34,23.776884]
[1735666357897,6.0454,197.38,197.34,33.60665241]
[1735666358223,6.0454,197.38,197.34,23.776884]
[1735666359120,6.0454,197.38,197.34,23.276884]
[1735666359518,6.0454,197.38,197.33,0.98831163]
[1735666359829,1.5891,197.37,197.33,0.98831163]
[1735666360222,1.5891,197.34,197.16,12.68]
[1735666360540,20.0,197.3,197.12,12.6821]
[1735666360741,20.0,197.26,197.15,9.82976841]
[1735666360949,20.0,197.26,197.08,14.2686]
[1735666361248,7.515,197.24,197.08,12.6848]
[1735666361537,7.515,197.24,197.13,9.82976841]
[1735666361722,7.515,197.24,197.08,12.6848]
[1735666361918,7.515,197.2,196.98,17.6915]
[1735666362129,7.515,197.2,196.9,15.89220942]
[1735666362130,7.91377114,197.21,196.94,135.0]
[1735666362335,7.515,197.13,196.93,7.94610471]
[1735666362522,7.515,197.13,196.95,12.6934]
[1735666362712,7.515,197.13,197.09,0.3]
[1735666365418,7.515,197.13,197.02,15.50019694]
[1735666365610,7.515,197.13,197.04,15.50019694]
[1735666365818,7.515,197.13,197.0,20.0]
[1735666366024,7.515,197.13,197.05,23.776884]
[1735666366432,7.515,197.13,197.04,23.776884]
[1735666366741,7.515,197.13,197.01,15.50019694]
[1735666366946,7.515,197.13,196.97,15.50019694]
[1735666367123,20.0,197.1,196.97,15.50019694]
[1735666367314,20.0,197.1,196.93,12.6946]
[1735666367516,6.0024,197.08,196.89,24.1094]
[1735666367841,6.0024,197.08,196.89,12.6973]
[1735666368024,20.0,197.05,196.92,15.50019694]
[1735666368225,20.0,197.05,196.87,6.6026]
[1735666368226,20.0,197.05,196.91,15.50019694]
[1735666368426,1.5126,197.04,196.89,15.50019694]
[1735666368926,31.77542124,197.04,196.93,15.50019694]
[1735666369132,1.5126,197.04,196.95,15.50019694]
[1735666369630,1.5126,197.04,196.94,15.50019694]
[1735666369834,1.5126,197.04,196.93,15.50019694]
[1735666370036,1.5126,197.04,196.94,39.27708094]
[1735666370415,1.5126,197.04,196.95,15.50019694]
[1735666371247,1.5126,197.04,196.98,15.50019694]
[1735666371424,1.5126,197.04,197.01,23.776884]
[1735666371621,6.0024,197.08,196.95,20.0]
[1735666371829,6.0024,197.08,196.99,15.50019694]
[1735666372241,6.0024,197.08,197.0,39.27708094]
[1735666372543,6.0024,197.08,197.02,23.776884]
[1735666372744,1.5126,197.1,197.04,23.776884]
[1735666373847,1.5126,197.1,197.01,48.57207864]
[1735666374154,1.5126,197.1,197.02,24.79519464]
[1735666374357,1.5126,197.1,197.05,23.776884]
[1735666374855,1.5126,197.1,197.04,23.776884]
[1735666375218,1.5126,197.1,197.03,23.776884]
[1735666375419,1.5126,197.1,197.03,48.57207864]
[1735666375615,1.5126,197.1,197.04,23.776884]
[1735666375839,6.4633,197.13,196.95,20.0]
[1735666375840,6.4633,197.13,197.06,23.776884]
[1735666376050,6.4633,197.13,197.06,24.79519464]
[1735666376227,6.4633,197.13,197.07,23.776884]
[1735666376555,1.5912,197.15,197.07,24.79519464]
[1735666376727,1.5912,197.15,197.08,23.776884]
[1735666377227,6.4166,197.18,197.13,23.776884]
[1735666377427,1.5912,197.2,197.15,23.776884]
[1735666377647,1.5912,197.2,197.15,48.57207864]
[1735666377844,6.4166,197.23,197.17,23.776884]
[1735666378224,6.4166,197.23,197.17,48.57207864]
[1735666378425,6.4166,197.29,197.21,23.776884]
[1735666378633,6.4166,197.29,197.23,23.776884]
[1735666378942,20.0,197.26,197.11,25.3664]
[1735666379146,6.4166,197.29,197.13,24.79519464]
[1735666379349,1.98040552,197.26,197.12,24.79519464]
[1735666379656,20.0,197.24,197.13,23.776884]
[1735666379849,20.0,197.24,197.07,12.6856]
[1735666380151,20.0,197.24,197.06,6.463]
[1735666380152,20.0,197.19,197.01,6.463]
[1735666380367,20.0,197.19,197.03,24.79519464]
[1735666380523,20.0,197.19,197.04,24.79519464]
[1735666380721,20.0,197.19,197.05,24.79519464]
[1735666380926,20.0,197.19,197.06,24.79519464]
[1735666381160,20.0,197.19,196.98,38.0748]
[1735666381161,20.0,197.19,197.04,24.79519464]
[1735666381528,20.0,197.19,197.05,23.776884]
[1735666381955,21.5912,197.18,197.01,37.48469464]
[1735666382256,6.4166,197.17,197.02,48.57207864]
[1735666382437,6.4166,197.17,197.03,24.79519464]
[1735666382759,6.4166,197.17,197.07,23.776884]
[1735666382953,6.4166,197.17,197.09,23.776884]
[1735666383456,6.4166,197.17,197.1,23.776884]
[1735666383634,1.5912,197.18,197.13,24.79519464]
[1735666383949,6.4166,197.22,197.16,23.776884]
[1735666384578,6.4166,197.22,197.14,24.79519464]
[1735666384744,6.4166,197.22,197.13,24.79519464]
[1735666384951,6.4166,197.22,197.11,24.79519464]
[1735666385342,6.4166,197.22,197.12,48.57207864]
[1735666385643,6.4166,197.22,197.14,23.776884]
[1735666385949,6.4166,197.22,197.15,23.776884]
[1735666386363,6.4166,197.22,197.16,23.776884]
[1735666387639,6.4166,197.22,197.17,48.57207864]
[1735666387942,6.4166,197.22,197.17,23.776884]
[1735666388338,6.4166,197.22,197.16,48.57207864]
[1735666389230,6.4166,197.22,197.16,24.79519464]
[1735666389951,6.4166,197.22,197.17,23.776884]
[1735666390532,6.4166,197.22,197.15,24.79519464]
[1735666390737,6.4166,197.22,197.16,23.776884]
[1735666391262,1.5912,197.24,197.18,48.57207864]
[1735666391468,6.387,197.27,197.22,48.57207864]
[1735666391630,1.5831,197.3,197.22,48.57207864]
[1735666391835,1.5831,197.3,197.17,24.79519464]
[1735666392138,20.0,197.29,197.15,24.79519464]
[1735666392553,20.0,197.28,197.14,24.79519464]
[1735666392749,20.0,197.27,197.16,23.776884]
[1735666392942,1.5831,197.25,197.16,23.776884]
[1735666393138,20.0,197.23,197.05,30.3742]
[1735666393356,1.5831,197.25,197.13,24.79519464]
[1735666393542,1.5831,197.25,197.14,23.776884]
[1735666393752,1.5831,197.25,197.14,48.57207864]
[1735666393935,1.5831,197.25,197.17,24.79519464]
[1735666394244,1.5831,197.25,197.16,15.47231127]
[1735666394569,1.5831,197.25,197.18,23.776884]
[1735666394768,1.5831,197.25,197.19,15.47231127]
[1735666394935,1.5831,197.25,197.2,15.47231127]
[1735666395136,1.5831,197.25,197.2,39.24919527]
[1735666395341,7.9701,197.35,197.22,15.47231127]
[1735666395860,20.0,197.32,197.14,25.3622]
[1735666396165,20.0,197.27,197.15,28.15281127]
[1735666396668,20.0,197.27,197.18,23.776884]
[1735666397079,20.0,197.27,197.16,39.24919527]
[1735666397441,20.0,197.27,197.18,23.776884]
[1735666397967,6.387,197.3,197.21,23.776884]
[1735666400670,6.387,197.3,197.19,24.74545764]
[1735666400856,6.387,197.3,197.2,23.776884]
[1735666401558,6.387,197.3,197.21,23.776884]
[1735666401872,6.387,197.3,197.2,24.74545764]
[1735666401873,6.387,197.3,197.23,23.776884]
[1735666402471,6.387,197.3,197.22,23.776884]
[1735666402970,6.387,197.3,197.22,48.52234164]
[1735666403683,6.387,197.3,197.21,48.52234164]
[1735666404352,6.387,197.3,197.21,23.776884]
[1735666405477,6.387,197.3,197.2,37.42235764]
[1735666405478,6.387,197.3,197.2,24.74545764]
[1735666405776,6.387,197.3,197.18,24.74545764]
[1735666405983,6.387,197.3,197.19,23.776884]
[1735666406489,6.387,197.3,197.2,23.776884]
[1735666406892,6.387,197.3,197.19,23.776884]
[1735666407700,6.387,197.3,197.2,23.776884]
[1735666407862,6.387,197.3,197.16,24.74545764]
[1735666408057,6.387,197.3,197.17,24.74545764]
[1735666408379,6.387,197.3,197.18,23.776884]
[1735666408561,6.387,197.3,197.17,24.74545764]
[1735666408757,6.387,197.3,197.19,23.776884]
[1735666411182,6.387,197.3,197.18,12.6785]
[1735666411386,20.0,197.27,197.16,24.74545764]
[1735666411590,20.0,197.27,197.17,23.776884]
[1735666412496,20.0,197.27,197.15,12.6806]
[1735666412497,1.603,197.26,197.15,12.6806]
[1735666412803,20.0,197.27,197.06,27.0364]
[1735666412804,1.603,197.24,197.12,12.6824]
[1735666412965,20.0,197.22,197.09,37.42985764]
[1735666413160,20.0,197.22,197.1,24.74545764]
[1735666413365,20.0,197.22,197.09,24.74545764]
[1735666413598,20.0,197.22,197.01,25.3794]
[1735666413599,20.0,197.18,197.07,24.74545764]
[1735666413774,20.0,197.18,197.07,23.776884]
[1735666414298,20.0,197.18,197.06,24.74545764]
[1735666414614,20.0,197.18,197.05,24.74545764]
[1735666414764,20.0,197.18,197.06,23.776884]
[1735666414966,20.0,197.18,197.05,24.74545764]
[1735666415164,20.0,197.18,197.02,12.6884]
[1735666415165,20.0,197.18,197.06,24.74545764]
[1735666415395,1.603,197.17,197.05,24.74545764]
[1735666415698,1.603,197.17,197.07,24.74545764]
[1735666415999,1.603,197.17,197.08,24.74545764]
[1735666416298,1.603,197.17,197.11,23.776884]
[1735666416494,1.603,197.17,197.07,12.6858]
[1735666416495,1.603,197.17,197.15,23.776884]
[1735666416704,6.4475,197.21,197.15,23.776884]
[1735666416991,6.4475,197.21,197.16,23.776884]
[1735666417293,1.603,197.22,197.17,48.52234164]
[1735666417462,1.603,197.22,197.17,23.776884]
[1735666417909,1.603,197.22,197.11,12.6831]
[1735666418073,1.603,197.22,197.12,24.74545764]
[1735666418272,1.603,197.22,197.14,23.776884]
[1735666418477,1.603,197.22,197.14,39.2536536]
[1735666418873,1.603,197.22,197.15,15.4767696]
[1735666419096,1.603,197.22,197.13,12.6814]
[1735666419293,1.603,197.22,197.14,39.2536536]
[1735666419679,1.603,197.22,197.15,15.4767696]
[1735666420281,1.603,197.22,197.14,15.4767696]
[1735666421198,1.603,197.22,197.15,15.4767696]
[1735666421575,1.603,197.22,197.19,15.4767696]
[1735666421975,6.4475,197.25,197.2,15.4767696]
[1735666422177,6.4475,197.25,197.11,38.0497]
[1735666422386,6.4475,197.25,197.17,15.4767696]
[1735666422792,6.4475,197.25,197.18,15.4767696]
[1735666423108,6.4475,197.25,197.17,15.4767696]
[1735666423300,6.4475,197.25,197.18,15.4767696]
[1735666423797,6.4475,197.25,197.15,15.4767696]
[1735666424197,6.4475,197.25,197.16,15.4767696]
[1735666424718,6.4475,197.25,197.15,15.4767696]
[1735666425383,6.4475,197.25,197.14,15.4767696]
[1735666425683,6.4475,197.25,197.12,15.4767696]
[1735666425898,6.4475,197.25,197.14,15.4767696]
[1735666426420,6.4475,197.25,197.15,15.4767696]
[1735666426589,6.4475,197.25,197.14,15.4767696]
[1735666427098,6.4475,197.25,197.15,15.4767696]
[1735666427307,6.4475,197.25,197.14,15.4767696]
[1735666427826,6.4475,197.25,197.11,12.6832]
[1735666428018,6.4475,197.25,197.12,15.4767696]
[1735666428492,6.4475,197.25,197.13,15.4767696]
[1735666428690,20.0,197.22,197.11,15.4767696]
[1735666429298,20.0,197.22,197.1,15.4767696]
[1735666429498,20.0,197.22,197.12,15.4767696]
[1735666430016,20.0,197.22,197.14,15.4767696]
[1735666430217,1.6525,197.24,197.14,15.4767696]
[1735666430488,1.27167681,197.21,197.12,15.4767696]
[1735666430706,1.27167681,197.21,197.13,15.4767696]
[1735666430995,1.27167681,197.23,197.13,15.4767696]
[1735666431390,1.27167681,197.22,197.13,15.4767696]
[1735666431918,1.27167681,197.21,197.13,15.4767696]
[1735666432127,1.27167681,197.21,197.12,15.4767696]
[1735666432520,1.27167681,197.2,197.12,15.4767696]
[1735666433394,1.27167681,197.19,197.12,15.4767696]
[1735666434095,1.27167681,197.18,197.12,15.4767696]
[1735666434707,1.27167681,197.17,197.12,15.4767696]
[1735666435007,1.27167681,197.17,197.11,15.4767696]
[1735666435521,6.631,197.15,197.09,15.4767696]
[1735666435822,6.631,197.15,197.1,15.4767696]
[1735666436020,6.631,197.15,197.09,15.4767696]
[1735666436220,6.631,197.15,197.11,15.4767696]
[1735666436401,1.27167681,197.14,197.11,15.4767696]
[1735666436592,1.27167681,197.14,197.09,15.4767696]
[1735666437139,1.27167681,197.13,197.09,15.4767696]
[1735666437896,1.27167681,197.13,197.1,15.4767696]
[1735666438130,1.27167681,197.13,197.12,15.4767696]
[1735666438317,1.5425,197.16,197.12,15.4767696]
[1735666438503,1.5425,197.16,197.14,15.4767696]
[1735666439000,1.27162118,197.15,197.13,15.4767696]
[1735666439721,1.5425,197.16,197.13,15.4767696]
[1735666440221,1.5425,197.16,197.12,28.1592696]
[1735666440612,1.5425,197.16,197.1,15.4767696]
[1735666440821,1.5425,197.16,197.09,15.4767696]
[1735666441327,1.27174445,197.15,197.07,15.4767696]
[1735666441827,1.27174445,197.15,197.08,15.4767696]
[1735666442207,1.27174445,197.14,197.08,15.4767696]
[1735666442527,1.27174445,197.14,197.09,15.4767696]
[1735666442906,1.27174445,197.13,197.09,15.4767696]
[1735666443305,1.27174445,197.13,197.05,12.6867]
[1735666443306,1.27174445,197.13,197.07,15.4767696]
[1735666443519,1.27174445,197.13,197.08,15.4767696]
[1735666443933,1.27174445,197.12,197.08,15.4767696]
[1735666444426,1.27174445,197.12,197.11,15.4767696]
[1735666444637,1.27174445,197.11,197.1,15.4767696]
[1735666444800,1.27174445,197.11,197.09,12.6844]
[1735666444801,1.27174445,197.11,197.09,28.1611696]
[1735666445208,1.27174445,197.15,197.08,15.4767696]
[1735666445432,1.27174445,197.15,197.07,15.4767696]
[1735666445830,1.27174445,197.14,197.06,28.1630696]
[1735666446427,1.27174445,197.13,197.07,15.4767696]
[1735666446729,1.27174445,197.13,197.12,15.4767696]
[1735666447235,1.27174445,197.13,197.1,15.4767696]
[1735666447436,1.27174445,197.13,197.09,15.4767696]
[1735666448118,1.27174445,197.12,197.08,15.4767696]
[1735666448417,1.27174445,197.12,197.07,15.4767696]
[1735666448806,1.27174445,197.11,197.08,15.4767696]
[1735666449009,1.27174445,197.11,197.09,15.4767696]
[1735666449211,1.5425,197.16,197.09,15.4767696]
[1735666449423,1.5425,197.16,197.1,15.4767696]
[1735666449632,1.5425,197.16,197.12,15.4767696]
[1735666449928,1.5425,197.16,197.11,15.4767696]
[1735666450228,1.5425,197.16,197.09,15.4767696]
[1735666450432,1.5425,197.16,197.1,15.4767696]
[1735666451021,1.5425,197.16,197.11,15.4767696]
[1735666451231,1.5425,197.16,197.13,15.4767696]
[1735666451612,1.5425,197.16,197.11,15.4767696]
[1735666451813,1.5425,197.16,197.08,28.1616696]
[1735666452614,1.5425,197.16,197.09,15.4767696]
[1735666453216,1.5425,197.16,197.07,15.4767696]
[1735666454721,1.5425,197.16,197.05,28.1637696]
[1735666454918,1.5425,197.16,197.07,15.4767696]
[1735666455123,1.55,197.22,197.05,45.7756]
[1735666455325,20.0,197.21,197.08,15.4767696]
[1735666455511,6.3982,197.2,197.07,15.4767696]
[1735666455712,1.55,197.19,197.07,15.4767696]
[1735666455909,20.0,197.17,197.06,15.4767696]
[1735666456109,6.3982,197.15,197.02,15.4767696]
[1735666456339,6.3982,197.15,197.0,15.4767696]
[1735666456340,1.55,197.14,197.0,15.4767696]
[1735666456524,1.55,197.14,196.99,15.4767696]
[1735666456729,1.55,197.14,197.01,15.4767696]
[1735666456917,20.0,197.12,196.99,15.4767696]
[1735666457243,6.3982,197.1,196.99,15.4767696]
[1735666457433,6.3982,197.1,196.98,28.1683696]
[1735666457744,1.55,197.06,196.95,15.4767696]
[1735666457941,1.55,197.06,196.97,15.4767696]
[1735666458518,1.55,197.06,196.96,15.4767696]
[1735666458720,7.67036752,197.05,196.95,15.4767696]
[1735666458927,7.67036752,197.05,196.87,6.2031]
[1735666458928,7.67036752,197.05,196.93,15.4767696]
[1735666459611,1.27216752,197.04,196.93,15.4767696]
[1735666460339,1.27216752,197.03,196.93,15.4767696]
[1735666461029,1.55,197.01,196.93,15.4767696]
[1735666461425,1.55,197.01,196.94,15.4767696]
[1735666461629,1.55,197.01,196.9,15.4767696]
[1735666461630,6.3982,196.99,196.9,15.4767696]
[1735666462220,1.27216752,196.98,196.92,15.4767696]
[1735666462516,1.27216752,196.98,196.91,15.4767696]
[1735666463035,1.27216752,196.98,196.9,15.4767696]
[1735666463345,1.27216752,196.98,196.89,15.4767696]
[1735666463645,1.27216752,196.98,196.9,15.4767696]
[1735666463832,1.27216752,196.98,196.88,15.4767696]
[1735666464033,1.55,196.97,196.87,15.4767696]
[1735666464738,1.27216752,196.96,196.87,15.4767696]
[1735666465048,1.27216752,196.96,196.86,15.4767696]
[1735666465340,21.27216752,196.96,196.85,15.4767696]
[1735666465719,21.27216752,196.96,196.86,15.4767696]
[1735666466022,21.27216752,196.96,196.81,23.776884]
[1735666466229,1.27216752,196.95,196.84,24.8379679]
[1735666466423,1.27216752,196.95,196.74,1.5113]
[1735666466424,7.7377,196.94,196.7,17.6488]
[1735666466646,7.7377,196.94,196.83,24.8379679]
[1735666466945,1.27216752,196.93,196.91,24.8379679]
[1735666467327,7.7377,196.94,196.91,24.8379679]
[1735666467944,7.7377,196.94,196.86,12.6993]
[1735666468132,7.7377,196.94,196.86,24.8379679]
[1735666468825,7.7377,196.94,196.8,24.8379679]
[1735666468826,1.27327727,196.93,196.84,24.8379679]
[1735666469029,1.27327727,196.93,196.86,24.8379679]
[1735666469430,1.27327727,196.93,196.87,24.8379679]
[1735666469745,1.27327727,196.92,196.88,24.8379679]
[1735666470245,1.27327727,196.93,196.9,24.8379679]
[1735666470443,1.27327727,196.93,196.91,24.8379679]
[1735666470745,7.7377,196.94,196.88,24.8379679]
[1735666471049,7.7377,196.94,196.85,24.8379679]
[1735666471229,7.7377,196.94,196.84,24.8379679]
[1735666471718,7.7377,196.94,196.83,24.8379679]
[1735666471923,7.7377,196.94,196.79,12.7034]
[1735666471924,20.0,196.91,196.81,24.8379679]
[1735666472237,20.0,196.91,196.82,24.8379679]
[1735666472546,20.0,196.91,196.83,24.8379679]
[1735666472743,1.27336997,196.9,196.82,24.8379679]
[1735666473622,1.27336997,196.9,196.83,24.8379679]
[1735666473821,1.27336997,196.9,196.84,24.8379679]
[1735666474037,1.27336997,196.9,196.83,24.8379679]
[1735666474233,1.27336997,196.9,196.84,24.8379679]
[1735666474234,0.03456997,196.9,196.84,24.8379679]
[1735666474439,0.03456997,196.9,196.85,24.8379679]
[1735666475025,7.7377,196.94,196.87,24.8379679]
[1735666475247,7.7377,196.94,196.84,24.8379679]
[1735666475552,7.7377,196.94,196.87,24.8379679]
[1735666475927,7.7377,196.94,196.89,24.8379679]
[1735666476332,7.7377,196.94,196.91,24.8379679]
[1735666477362,7.7377,196.94,196.89,24.8379679]
[1735666477543,7.7377,196.94,196.88,24.8379679]
[1735666478056,7.7377,196.94,196.87,24.8379679]
[1735666478253,7.7377,196.94,196.86,24.8379679]
[1735666478484,7.7377,196.94,196.88,24.8379679]
[1735666478691,7.7377,196.94,196.9,24.8379679]
[1735666478975,1.6388,196.94,196.92,24.8379679]
[1735666479177,1.5211,196.99,196.92,24.8379679]
[1735666479746,1.5211,196.99,196.93,24.8379679]
[1735666480579,1.5211,196.99,196.95,24.8379679]
[1735666480748,1.5211,196.99,196.97,24.8379679]
[1735666480944,1.5162,197.04,196.98,24.8379679]
[1735666481250,1.5162,197.04,197.0,24.8379679]
[1735666481759,1.5162,197.04,197.01,24.8379679]
[1735666482377,30.25261715,197.07,197.03,24.8379679]
[1735666482579,30.25261715,197.07,197.06,24.8379679]
[1735666482760,30.25261715,197.07,197.06,48.6148519]
[1735666483167,30.25261715,197.07,197.06,24.8379679]
[1735666483561,30.25261715,197.07,197.01,6.5854]
[1735666483562,30.25261715,197.07,197.03,24.8379679]
[1735666483766,30.25261715,197.07,197.01,24.8379679]
[1735666484171,30.25261715,197.07,197.02,24.8379679]
[1735666484350,30.25261715,197.07,197.03,24.8379679]
[1735666484551,30.25261715,197.07,196.98,24.8379679]
[1735666484774,30.25261715,197.07,196.99,24.8379679]
[1735666484963,30.25261715,197.07,197.0,24.8379679]
[1735666485159,7.7516,197.06,196.96,24.8379679]
[1735666485381,7.7516,197.06,196.94,24.8379679]
[1735666485578,20.0,197.02,196.91,24.8379679]
[1735666485780,6.2354,197.0,196.9,24.8379679]
[1735666485955,20.0,196.97,196.86,24.8379679]
[1735666486680,20.0,196.97,196.89,24.8379679]
[1735666486881,1.27279458,196.99,196.92,24.8379679]
[1735666487066,1.27279458,196.96,196.93,24.8379679]
[1735666487385,1.27279458,196.96,196.95,24.8379679]
[1735666487882,1.27279458,196.99,196.93,24.8379679]
[1735666488082,1.27279458,196.99,196.94,24.8379679]
[1735666488379,6.2354,197.0,196.93,24.8379679]
[1735666489671,1.2728278,196.99,196.94,24.8379679]
[1735666489868,1.2728278,196.99,196.95,24.8379679]
[1735666490066,6.2354,197.0,196.95,24.8379679]
[1735666490268,6.2354,197.0,196.96,24.8379679]
[1735666490490,6.2354,197.0,196.95,24.8379679]
[1735666491181,6.2354,197.0,196.96,24.8379679]
[1735666491581,6.2354,197.0,196.97,24.8379679]
[1735666491889,6.2354,197.0,196.96,24.8379679]
[1735666492982,1.5162,197.01,196.97,24.8379679]
[1735666493297,1.5162,197.01,196.94,24.8379679]
[1735666493898,1.27264351,197.0,196.94,24.8379679]
[1735666494070,1.27264351,197.0,196.93,24.8379679]
[1735666494404,1.5162,197.01,196.93,24.8379679]